[Event "EIRCC 2019"]
[Site "Tallinn"]
[Date "2019.12.05"]
[Round "3.29"]
[White "Galopoulos, Nikolaos"]
[Black "Haitin, Ilja"]
[Result "0-1"]
[ECO "D25"]
[WhiteElo "2439"]
[BlackElo "2232"]
[Annotator "NA"]
[PlyCount "100"]
[EventDate "2019.12.05"]
[EventType "swiss"]
[EventCountry "EST"]
[SourceTitle "playchess.com"]
[Source "ChessBase"]
[SourceQuality "1"]
[TimeControl "900+10"]

1. d4 {[%emt 0:00:00]} d5 {[%emt 0:00:00]} 2. c4 {[%emt 0:00:00]} dxc4 {[%emt 0:00:00]} 3. Nf3 {[%emt 0:00:00]} Nf6 {[%emt 0:00:00]} 4. e3 {[%emt 0:00:00]} Bg4 {[%emt 0:00:00]} 5. Bxc4 {[%emt 0:00:00]} e6 {[%emt 0:00:00]} 6. h3 {[%emt 0:00:07]} Bh5 {[%emt 0:00:00]} 7. O-O {[%emt 0:00:16]} Nbd7 {[%emt 0:00:00]} 8. Nc3 {[%emt 0:00:08]} Bb4 {[%emt 0:00:03]} 9. Be2 {[%emt 0:00:06]} O-O {[%emt 0:00:34]} 10. Qb3 {[%emt 0:00:04]} c5 {[%emt 0:00:19]} 11. dxc5 {[%emt 0:00:06]} Qa5 {[%emt 0:00:19]} 12. c6 {[%emt 0:00:11]} bxc6 {[%emt 0:01:31]} 13. Bd2 {[%emt 0:00:01]} Rab8 {[%emt 0:00:36]} 14. Qc4 {[%emt 0:00:58]} Nb6 {[%emt 0:00:50]} 15. Qh4 {[%emt 0:00:02]} Nbd5 {[%emt 0:00:28]} 16. e4 {[%emt 0:08:03]} Nxc3 {[%emt 0:00:43]} 17. bxc3 {[%emt 0:00:01]} Bxc3 {[%emt 0:00:45]} 18. e5 {[%emt 0:00:56]} Bxf3 {[%emt 0:02:51]} 19. exf6 {[%emt 0:00:01]} Bxd2 {[%emt 0:02:35]} 20. Qg3 {[%emt 0:02:05]} Qg5 {[%emt 0:01:07]} 21. Qxf3 {[%emt 0:00:01]} Qxf6 {[%emt 0:00:13]} 22. Qxc6 {[%emt 0:00:01]} Bc3 {[%emt 0:00:20]} 23. Rac1 {[%emt 0:00:32]} Bd4 {[%emt 0:00:03]} 24. Rc2 {[%emt 0:00:06]} Rb2 {[%emt 0:01:07]} 25. Rxb2 {[%emt 0:00:14]} Bxb2 {[%emt 0:00:01]} 26. Rd1 {[%emt 0:00:13]} Bd4 {[%emt 0:00:34]} 27. Bf3 {[%emt 0:00:02]} g6 {[%emt 0:00:05]} 28. Qa4 {[%emt 0:00:18]} e5 {[%emt 0:00:16]} 29. Qc2 {[%emt 0:00:07]} Rb8 {[%emt 0:00:06]} 30. Rb1 {[%emt 0:00:09]} Rxb1+ {[%emt 0:00:31]} 31. Qxb1 {[%emt 0:00:01]} Kg7 {[%emt 0:00:03]} 32. Qc2 {[%emt 0:00:19]} Qb6 {[%emt 0:00:06]} 33. Bd5 {[%emt 0:00:10]} Qa5 {[%emt 0:00:26]} 34. Bc4 {[%emt 0:00:44]} Qe1+ {[%emt 0:00:12]} 35. Bf1 {[%emt 0:00:02]} e4 {[%emt 0:00:34]} 36. Qe2 {[%emt 0:00:04]} Qb4 {[%emt 0:00:27]} 37. Qc4 {[%emt 0:00:10]} Qb6 {[%emt 0:00:57]} 38. Qc2 {[%emt 0:00:20]} e3 {[%emt 0:00:34]} 39. fxe3 {[%emt 0:00:01]} Bxe3+ {[%emt 0:00:01]} 40. Kh1 {[%emt 0:00:00]} Qf6 {[%emt 0:00:09]} 41. Qe2 {[%emt 0:00:13]} Bb6 {[%emt 0:00:03]} 42. Qd1 {[%emt 0:00:48]} Qf4 {[%emt 0:00:22]} 43. Be2 {[%emt 0:01:06]} Bc7 {[%emt 0:00:17]} 44. Kg1 {[%emt 0:00:01]} Qh2+ {[%emt 0:00:05]} 45. Kf2 {[%emt 0:00:21]} Bb6+ {[%emt 0:00:08]} 46. Kf3 {[%emt 0:00:03]} Qe5 {[%emt 0:00:22]} 47. Qd2 {[%emt 0:00:55]} Qf6+ {[%emt 0:01:16]} 48. Qf4 {[%emt 0:00:07]} Qc3+ {[%emt 0:00:01]} 49. Ke4 {[%emt 0:00:16]} Qd4+ {[%emt 0:00:12]} 50. Kf3 {[%emt 0:00:04]} Qf2+ {[%emt 0:00:02]} 0-1

[Event "EIRCC 2019"]
[Site "Tallinn"]
[Date "2019.12.05"]
[Round "3.30"]
[White "Krivenko, Sergey"]
[Black "Mustaps, Matiss"]
[Result "1-0"]
[ECO "A45"]
[WhiteElo "2233"]
[BlackElo "2435"]
[Annotator "NA"]
[PlyCount "149"]
[EventDate "2019.12.05"]
[EventType "swiss"]
[EventCountry "EST"]
[SourceTitle "playchess.com"]
[Source "ChessBase"]
[SourceQuality "1"]
[TimeControl "900+10"]

1. d4 {[%emt 0:00:08]} Nf6 {[%emt 0:00:00]} 2. Bg5 {[%emt 0:00:01]} e6 {[%emt 0:00:00]} 3. e4 {[%emt 0:00:01]} c5 {[%emt 0:00:00]} 4. d5 {[%emt 0:00:33]} h6 {[%emt 0:00:58]} 5. Bxf6 {[%emt 0:00:09]} Qxf6 {[%emt 0:00:01]} 6. Nc3 {[%emt 0:00:03]} g6 {[%emt 0:00:37]} 7. Nf3 {[%emt 0:00:14]} Bg7 {[%emt 0:04:10]} 8. Nb5 {[%emt 0:01:01]} O-O {[%emt 0:00:12]} 9. Nc7 {[%emt 0:01:17]} Qxb2 {[%emt 0:00:04]} 10. Rb1 {[%emt 0:00:18]} Qxa2 {[%emt 0:00:44]} 11. Nxa8 {[%emt 0:00:11]} exd5 {[%emt 0:00:12]} 12. exd5 {[%emt 0:01:13]} Bc3+ {[%emt 0:02:18]} 13. Nd2 {[%emt 0:00:01]} Re8+ {[%emt 0:00:01]} 14. Be2 {[%emt 0:00:01]} Qxd5 {[%emt 0:00:02]} 15. Nc7 {[%emt 0:03:24]} Qxg2 {[%emt 0:00:04]} 16. Rf1 {[%emt 0:00:01]} Re5 {[%emt 0:01:06]} 17. Nb5 {[%emt 0:01:26]} Ba5 {[%emt 0:00:23]} 18. c3 {[%emt 0:02:01]} d5 {[%emt 0:00:19]} 19. Nd6 {[%emt 0:00:52]} Bh3 {[%emt 0:01:23]} 20. Qb3 {[%emt 0:01:54]} Bg4 {[%emt 0:01:44]} 21. N2e4 {[%emt 0:00:36]} Rxe4 {[%emt 0:00:56]} 22. Nxe4 {[%emt 0:00:07]} Bxe2 {[%emt 0:00:02]} 23. Nf6+ {[%emt 0:00:16]} Kg7 {[%emt 0:00:05]} 24. Ne8+ {[%emt 0:00:31]} Kf8 {[%emt 0:00:01]} 25. Kxe2 {[%emt 0:00:02]} Qe4+ {[%emt 0:00:28]} 26. Kd2 {[%emt 0:00:20]} d4 {[%emt 0:00:06]} 27. Qxf7+ {[%emt 0:00:09]} Kxf7 {[%emt 0:00:14]} 28. Nd6+ {[%emt 0:00:02]} Ke6 {[%emt 0:00:07]} 29. Nxe4 Kd5 {[%emt 0:00:39]} 30. f3 {[%emt 0:00:15]} b6 {[%emt 0:00:03]} 31. Kc2 {[%emt 0:00:25]} Nc6 {[%emt 0:00:00]} 32. Rbd1 {[%emt 0:00:19]} Kc4 {[%emt 0:00:11]} 33. cxd4 {[%emt 0:00:21]} cxd4 {[%emt 0:00:29]} 34. Nd6+ {[%emt 0:00:25]} Kd5 {[%emt 0:00:04]} 35. Nf7 {[%emt 0:00:14]} Bc3 {[%emt 0:00:26]} 36. Nxh6 {[%emt 0:00:08]} Kc4 {[%emt 0:00:01]} 37. Ng4 {[%emt 0:00:08]} a5 {[%emt 0:00:14]} 38. f4 {[%emt 0:00:08]} Nb4+ {[%emt 0:00:18]} 39. Kb1 {[%emt 0:00:02]} a4 {[%emt 0:00:09]} 40. Ne5+ {[%emt 0:00:24]} Kb3 {[%emt 0:00:01]} 41. Nd3 {[%emt 0:00:05]} Nxd3 {[%emt 0:01:13]} 42. Rxd3 {[%emt 0:00:02]} b5 {[%emt 0:00:01]} 43. f5 {[%emt 0:00:26]} gxf5 {[%emt 0:00:00]} 44. Rxf5 {[%emt 0:00:05]} b4 {[%emt 0:00:02]} 45. h4 {[%emt 0:00:27]} a3 46. Rf2 {[%emt 0:00:10]} Kc4 {[%emt 0:00:56]} 47. Rh3 {[%emt 0:01:14]} b3 {[%emt 0:00:31]} 48. h5 {[%emt 0:00:08]} d3 {[%emt 0:00:18]} 49. Rf4+ {[%emt 0:00:21]} Kc5 {[%emt 0:00:17]} 50. Ra4 {[%emt 0:00:10]} a2+ {[%emt 0:00:32]} 51. Rxa2 {[%emt 0:00:02]} bxa2+ {[%emt 0:00:01]} 52. Kxa2 {[%emt 0:00:01]} Kc4 {[%emt 0:00:00]} 53. Kb1 {[%emt 0:00:13]} Bh8 {[%emt 0:00:56]} 54. Kc1 {[%emt 0:00:06]} Kd4 {[%emt 0:00:00]} 55. Kd2 {[%emt 0:00:06]} Ke4 {[%emt 0:00:01]} 56. Rxd3 {[%emt 0:00:09]} Kf5 57. Rd5+ {[%emt 0:00:21]} Kf6 {[%emt 0:00:11]} 58. Kd3 {[%emt 0:00:01]} Kg7 {[%emt 0:00:05]} 59. Ke4 {[%emt 0:00:07]} Kh6 {[%emt 0:00:03]} 60. Kf4 {[%emt 0:00:01]} Bb2 {[%emt 0:00:01]} 61. Kg4 {[%emt 0:00:02]} Bc1 {[%emt 0:00:27]} 62. Rd1 {[%emt 0:00:04]} Be3 {[%emt 0:00:02]} 63. Rd6+ {[%emt 0:00:05]} Kh7 {[%emt 0:00:03]} 64. Kf5 {[%emt 0:00:06]} Bc1 {[%emt 0:00:03]} 65. Rd1 {[%emt 0:00:06]} Be3 {[%emt 0:00:01]} 66. Ke4 {[%emt 0:00:03]} Bg5 {[%emt 0:00:01]} 67. Kf3 {[%emt 0:00:05]} Kh6 {[%emt 0:00:02]} 68. Kg4 {[%emt 0:00:03]} Be3 {[%emt 0:00:01]} 69. Rd6+ {[%emt 0:00:17]} Kh7 {[%emt 0:00:01]} 70. Kf5 {[%emt 0:00:42]} Bc1 {[%emt 0:00:01]} 71. h6 {[%emt 0:00:35]} Bxh6 {[%emt 0:00:08]} 72. Rd7+ {[%emt 0:00:01]} Bg7 {[%emt 0:01:19]} 73. Kg5 {[%emt 0:00:02]} Kg8 {[%emt 0:00:38]} 74. Kg6 {[%emt 0:00:02]} Kh8 {[%emt 0:00:01]} 75. Rd8+ {[%emt 0:00:02]} 1-0

[Event "EIRCC 2019"]
[Site "Tallinn"]
[Date "2019.12.05"]
[Round "3.31"]
[White "Cerveny, Martin"]
[Black "Sysolyatin, Evgeny"]
[Result "0-1"]
[ECO "D35"]
[WhiteElo "2432"]
[BlackElo "2231"]
[Annotator "NA"]
[PlyCount "106"]
[EventDate "2019.12.05"]
[EventType "swiss"]
[EventCountry "EST"]
[SourceTitle "playchess.com"]
[Source "ChessBase"]
[SourceQuality "1"]
[TimeControl "900+10"]

1. d4 {[%emt 0:00:00]} d5 {[%emt 0:00:00]} 2. c4 {[%emt 0:00:00]} e6 {[%emt 0:00:00]} 3. Nc3 {[%emt 0:00:00]} Nf6 {[%emt 0:00:00]} 4. cxd5 {[%emt 0:00:02]} exd5 {[%emt 0:00:10]} 5. Bg5 {[%emt 0:00:02]} Nbd7 {[%emt 0:00:05]} 6. e3 {[%emt 0:00:12]} Be7 {[%emt 0:00:09]} 7. Bd3 {[%emt 0:00:11]} c6 {[%emt 0:00:07]} 8. Qc2 {[%emt 0:00:08]} Nh5 {[%emt 0:00:40]} 9. Bxe7 {[%emt 0:00:05]} Qxe7 {[%emt 0:00:02]} 10. Nge2 {[%emt 0:00:04]} Nhf6 {[%emt 0:00:05]} 11. O-O {[%emt 0:00:12]} O-O {[%emt 0:03:16]} 12. Ng3 {[%emt 0:00:15]} Re8 {[%emt 0:00:09]} 13. Rae1 {[%emt 0:00:24]} Nf8 {[%emt 0:00:03]} 14. f3 {[%emt 0:00:04]} Be6 {[%emt 0:01:07]} 15. e4 {[%emt 0:00:55]} dxe4 {[%emt 0:00:02]} 16. fxe4 {[%emt 0:00:02]} Qb4 {[%emt 0:00:10]} 17. Rxf6 {[%emt 0:03:26]} gxf6 {[%emt 0:00:03]} 18. Qf2 {[%emt 0:00:03]} Red8 {[%emt 0:02:03]} 19. d5 {[%emt 0:00:58]} cxd5 {[%emt 0:03:04]} 20. exd5 {[%emt 0:00:02]} Bxd5 {[%emt 0:01:12]} 21. Nh5 {[%emt 0:00:31]} Be6 {[%emt 0:00:07]} 22. Nxf6+ {[%emt 0:02:52]} Kh8 {[%emt 0:00:01]} 23. Re3 {[%emt 0:00:26]} Qd4 {[%emt 0:02:54]} 24. h4 {[%emt 0:00:43]} Ng6 {[%emt 0:01:26]} 25. Bxg6 {[%emt 0:00:33]} hxg6 {[%emt 0:00:10]} 26. Nfe4 {[%emt 0:03:16]} Bf5 {[%emt 0:00:24]} 27. Ng5 {[%emt 0:01:48]} Kg7 {[%emt 0:00:04]} 28. Nf3 {[%emt 0:00:23]} Qc5 {[%emt 0:00:31]} 29. Na4 {[%emt 0:01:00]} Qc1+ {[%emt 0:00:25]} 30. Kh2 {[%emt 0:00:02]} Rd1 {[%emt 0:00:07]} 31. Nc3 {[%emt 0:00:10]} Rh1+ {[%emt 0:00:10]} 32. Kg3 {[%emt 0:00:01]} Rd8 {[%emt 0:00:40]} 33. Re7 {[%emt 0:00:22]} Qf1 {[%emt 0:00:48]} 34. Qc5 {[%emt 0:00:03]} Qa6 {[%emt 0:00:04]} 35. Nd4 {[%emt 0:00:08]} Qd6+ {[%emt 0:00:03]} 36. Qxd6 {[%emt 0:00:01]} Rxd6 {[%emt 0:00:01]} 37. Nxf5+ {[%emt 0:00:04]} gxf5 {[%emt 0:00:01]} 38. Rxb7 {[%emt 0:00:03]} Rb6 {[%emt 0:00:02]} 39. Rxa7 {[%emt 0:00:03]} Rxb2 {[%emt 0:00:01]} 40. Nd5 {[%emt 0:00:04]} Rg1 {[%emt 0:00:04]} 41. Ne3 {[%emt 0:00:13]} Rb5 {[%emt 0:00:21]} 42. Kf4 {[%emt 0:00:20]} Kg6 {[%emt 0:00:21]} 43. h5+ {[%emt 0:00:08]} Kxh5 {[%emt 0:00:18]} 44. Rxf7 {[%emt 0:00:03]} Kg6 {[%emt 0:00:05]} 45. Ra7 {[%emt 0:00:03]} Rb4+ {[%emt 0:00:01]} 46. Kf3 {[%emt 0:00:03]} Rc1 {[%emt 0:00:15]} 47. Nd5 {[%emt 0:00:11]} Rb2 {[%emt 0:00:27]} 48. Nf4+ {[%emt 0:00:07]} Kg5 {[%emt 0:00:15]} 49. Nh3+ {[%emt 0:00:36]} Kf6 {[%emt 0:00:01]} 50. Ra6+ {[%emt 0:00:02]} Ke7 {[%emt 0:00:07]} 51. Ra3 {[%emt 0:00:32]} Rf1+ {[%emt 0:00:09]} 52. Kg3 {[%emt 0:00:05]} Rb4 {[%emt 0:00:07]} 53. Nf4 {[%emt 0:00:03]} Rfxf4 {[%emt 0:00:04]} 0-1

[Event "EIRCC 2019"]
[Site "Tallinn"]
[Date "2019.12.05"]
[Round "3.32"]
[White "Pogan, Nikolas"]
[Black "Usmanov, Vasily"]
[Result "0-1"]
[ECO "A06"]
[WhiteElo "2232"]
[BlackElo "2428"]
[Annotator "NA"]
[PlyCount "89"]
[EventDate "2019.12.05"]
[EventType "swiss"]
[EventCountry "EST"]
[SourceTitle "playchess.com"]
[Source "ChessBase"]
[SourceQuality "1"]
[TimeControl "900+10"]

1. Nf3 {[%emt 0:00:00]} d5 {[%emt 0:00:00]} 2. g3 {[%emt 0:00:08]} c6 {[%emt 0:00:00]} 3. Bg2 {[%emt 0:00:01]} Bf5 {[%emt 0:00:00]} 4. O-O {[%emt 0:00:02]} h6 {[%emt 0:00:00]} 5. d3 {[%emt 0:00:03]} e6 {[%emt 0:00:01]} 6. b3 {[%emt 0:00:06]} Be7 {[%emt 0:00:49]} 7. Bb2 {[%emt 0:00:03]} Bf6 {[%emt 0:00:10]} 8. Bxf6 {[%emt 0:00:01]} Nxf6 {[%emt 0:00:05]} 9. c3 {[%emt 0:00:01]} Nbd7 {[%emt 0:00:07]} 10. Nfd2 {[%emt 0:00:06]} e5 {[%emt 0:00:50]} 11. d4 {[%emt 0:00:11]} O-O {[%emt 0:01:25]} 12. Re1 {[%emt 0:01:30]} Re8 {[%emt 0:01:41]} 13. e3 {[%emt 0:00:09]} a5 {[%emt 0:01:11]} 14. c4 {[%emt 0:00:24]} exd4 {[%emt 0:00:31]} 15. exd4 {[%emt 0:00:02]} Rxe1+ {[%emt 0:00:29]} 16. Qxe1 {[%emt 0:00:03]} Qb6 {[%emt 0:00:06]} 17. c5 {[%emt 0:02:34]} Qb4 {[%emt 0:00:20]} 18. Nf3 {[%emt 0:00:03]} Re8 {[%emt 0:06:07]} 19. Qc1 {[%emt 0:02:27]} Ne4 {[%emt 0:01:13]} 20. Qb2 {[%emt 0:01:01]} Ng5 {[%emt 0:00:18]} 21. Nbd2 {[%emt 0:05:55]} Re2 {[%emt 0:00:02]} 22. Rd1 {[%emt 0:00:47]} Nh3+ {[%emt 0:00:17]} 23. Bxh3 {[%emt 0:00:24]} Bxh3 {[%emt 0:00:02]} 24. a3 {[%emt 0:00:25]} Qb5 {[%emt 0:00:05]} 25. Qc3 {[%emt 0:00:09]} Nf6 {[%emt 0:00:14]} 26. a4 {[%emt 0:00:19]} Qa6 {[%emt 0:00:07]} 27. Ne5 {[%emt 0:00:39]} g5 {[%emt 0:02:30]} 28. Qd3 {[%emt 0:01:16]} Qxd3 {[%emt 0:00:16]} 29. Nxd3 {[%emt 0:00:02]} Ne4 {[%emt 0:00:28]} 30. Nxe4 {[%emt 0:00:49]} dxe4 {[%emt 0:00:05]} 31. Ne5 {[%emt 0:00:03]} Rb2 {[%emt 0:00:21]} 32. Nc4 {[%emt 0:00:04]} Rxb3 33. Nxa5 {[%emt 0:00:06]} Rb4 {[%emt 0:00:03]} 34. Ra1 {[%emt 0:00:35]} Kf8 {[%emt 0:00:10]} 35. d5 {[%emt 0:00:06]} cxd5 {[%emt 0:00:06]} 36. c6 {[%emt 0:00:01]} b6 {[%emt 0:00:29]} 37. Nb7 {[%emt 0:00:18]} Rc4 {[%emt 0:00:09]} 38. a5 {[%emt 0:00:01]} bxa5 {[%emt 0:00:04]} 39. Nxa5 {[%emt 0:00:01]} Rc5 {[%emt 0:00:07]} 40. f3 {[%emt 0:00:21]} e3 {[%emt 0:00:07]} 41. g4 {[%emt 0:00:00]} h5 {[%emt 0:00:17]} 42. gxh5 {[%emt 0:00:05]} f5 {[%emt 0:00:07]} 43. h6 {[%emt 0:00:12]} f4 {[%emt 0:00:03]} 44. Rb1 {[%emt 0:00:22]} Rxa5 {[%emt 0:00:07]} 45. c7 {[%emt 0:00:19]} 0-1

[Event "EIRCC 2019"]
[Site "Tallinn"]
[Date "2019.12.05"]
[Round "3.33"]
[White "Shapiro, Viktor"]
[Black "Pohjala, Henri"]
[Result "1/2-1/2"]
[ECO "A06"]
[WhiteElo "2231"]
[BlackElo "2418"]
[Annotator "NA"]
[PlyCount "95"]
[EventDate "2019.12.05"]
[EventType "swiss"]
[EventCountry "EST"]
[SourceTitle "playchess.com"]
[Source "ChessBase"]
[SourceQuality "1"]
[TimeControl "900+10"]

1. Nf3 {[%emt 0:00:00]} d5 {[%emt 0:00:00]} 2. g3 {[%emt 0:00:01]} Nf6 {[%emt 0:00:00]} 3. Bg2 {[%emt 0:00:01]} c6 {[%emt 0:00:00]} 4. d3 {[%emt 0:00:01]} Bg4 {[%emt 0:00:13]} 5. Nbd2 {[%emt 0:00:03]} Nbd7 {[%emt 0:00:06]} 6. c4 {[%emt 0:00:07]} e6 {[%emt 0:00:05]} 7. a3 {[%emt 0:00:03]} a5 {[%emt 0:00:13]} 8. b3 {[%emt 0:00:02]} Bd6 {[%emt 0:00:08]} 9. Bb2 {[%emt 0:00:02]} Qe7 {[%emt 0:00:16]} 10. O-O {[%emt 0:00:07]} O-O {[%emt 0:00:05]} 11. Qc2 {[%emt 0:00:36]} Rfe8 {[%emt 0:00:07]} 12. e4 {[%emt 0:00:17]} dxe4 {[%emt 0:00:19]} 13. dxe4 {[%emt 0:00:01]} Bxf3 {[%emt 0:01:30]} 14. Nxf3 {[%emt 0:00:07]} e5 {[%emt 0:00:03]} 15. Nh4 {[%emt 0:00:37]} g6 {[%emt 0:00:07]} 16. Rfd1 {[%emt 0:00:32]} Rad8 {[%emt 0:03:19]} 17. Bc3 {[%emt 0:00:07]} Bxa3 {[%emt 0:02:19]} 18. Bxa5 {[%emt 0:00:02]} Ra8 {[%emt 0:00:02]} 19. Bc3 {[%emt 0:00:44]} Bb4 {[%emt 0:00:13]} 20. Qd2 {[%emt 0:00:34]} Rxa1 {[%emt 0:00:18]} 21. Rxa1 {[%emt 0:00:01]} Bxc3 {[%emt 0:00:02]} 22. Qxc3 {[%emt 0:00:01]} Nc5 {[%emt 0:00:02]} 23. Re1 {[%emt 0:01:18]} Qd6 {[%emt 0:01:42]} 24. b4 {[%emt 0:00:09]} Ne6 {[%emt 0:00:35]} 25. Nf3 {[%emt 0:00:49]} c5 {[%emt 0:02:06]} 26. Qxe5 {[%emt 0:02:03]} Qxe5 {[%emt 0:00:09]} 27. Nxe5 {[%emt 0:00:01]} cxb4 {[%emt 0:00:38]} 28. Nd3 {[%emt 0:00:09]} b3 {[%emt 0:00:09]} 29. e5 {[%emt 0:00:05]} Nd7 {[%emt 0:00:07]} 30. Bxb7 {[%emt 0:02:01]} Nec5 {[%emt 0:01:11]} 31. Nxc5 {[%emt 0:00:04]} Nxc5 {[%emt 0:00:03]} 32. Bd5 {[%emt 0:00:04]} b2 {[%emt 0:00:57]} 33. Rb1 {[%emt 0:01:02]} Rb8 {[%emt 0:00:35]} 34. Bc6 {[%emt 0:00:10]} Rb3 {[%emt 0:01:14]} 35. Kf1 {[%emt 0:00:55]} Nd3 {[%emt 0:00:43]} 36. Ke2 {[%emt 0:00:36]} Ra3 {[%emt 0:00:44]} 37. Be4 {[%emt 0:00:31]} Nxe5 {[%emt 0:00:07]} 38. Rxb2 {[%emt 0:00:04]} Nxc4 {[%emt 0:00:11]} 39. Rc2 {[%emt 0:00:30]} Nd6 {[%emt 0:00:27]} 40. Bd3 {[%emt 0:00:01]} Ra7 {[%emt 0:00:03]} 41. Rc6 {[%emt 0:00:16]} Re7+ {[%emt 0:00:13]} 42. Kf3 {[%emt 0:00:04]} Ne8 {[%emt 0:00:06]} 43. Bc4 {[%emt 0:00:06]} Kg7 {[%emt 0:00:07]} 44. h4 {[%emt 0:00:14]} Nf6 {[%emt 0:00:10]} 45. g4 {[%emt 0:00:15]} Nd7 {[%emt 0:00:03]} 46. Kg3 {[%emt 0:00:35]} Ne5 {[%emt 0:00:07]} 47. Rc8 {[%emt 0:00:01]} Nxc4 {[%emt 0:00:06]} 48. Rxc4 1/2-1/2

[Event "EIRCC 2019"]
[Site "Tallinn"]
[Date "2019.12.05"]
[Round "3.34"]
[White "Studer, Noel"]
[Black "Schnabel, Ralf"]
[Result "0-1"]
[ECO "A88"]
[WhiteElo "2405"]
[BlackElo "2220"]
[Annotator "NA"]
[PlyCount "107"]
[EventDate "2019.12.05"]
[EventType "swiss"]
[EventCountry "EST"]
[SourceTitle "playchess.com"]
[Source "ChessBase"]
[SourceQuality "1"]
[TimeControl "900+10"]

1. d4 {[%emt 0:00:00]} f5 {[%emt 0:02:01]} 2. c4 {[%emt 0:00:00]} Nf6 {[%emt 0:00:03]} 3. g3 {[%emt 0:00:02]} g6 {[%emt 0:00:02]} 4. Bg2 {[%emt 0:00:01]} Bg7 {[%emt 0:00:02]} 5. Nf3 {[%emt 0:00:01]} d6 {[%emt 0:00:02]} 6. O-O {[%emt 0:00:02]} O-O {[%emt 0:00:02]} 7. Nc3 {[%emt 0:00:01]} c6 {[%emt 0:00:01]} 8. Re1 {[%emt 0:00:03]} Ne4 {[%emt 0:00:01]} 9. Qc2 {[%emt 0:00:01]} Nxc3 {[%emt 0:00:03]} 10. bxc3 {[%emt 0:00:01]} e5 {[%emt 0:00:07]} 11. dxe5 {[%emt 0:00:16]} dxe5 {[%emt 0:00:02]} 12. Ba3 {[%emt 0:00:01]} Re8 {[%emt 0:00:12]} 13. Rad1 {[%emt 0:00:01]} Nd7 {[%emt 0:01:40]} 14. e4 {[%emt 0:00:21]} f4 {[%emt 0:00:15]} 15. Bh3 {[%emt 0:04:11]} fxg3 {[%emt 0:00:07]} 16. hxg3 {[%emt 0:00:24]} Qf6 {[%emt 0:01:03]} 17. Re3 {[%emt 0:02:23]} Nf8 {[%emt 0:02:24]} 18. Bxc8 {[%emt 0:01:31]} Raxc8 {[%emt 0:00:02]} 19. Bd6 {[%emt 0:00:04]} Rcd8 {[%emt 0:01:26]} 20. c5 {[%emt 0:00:45]} Rd7 {[%emt 0:00:08]} 21. Red3 {[%emt 0:00:27]} Rf7 {[%emt 0:00:21]} 22. R1d2 {[%emt 0:01:13]} g5 {[%emt 0:01:01]} 23. Nh2 {[%emt 0:01:36]} h5 {[%emt 0:00:03]} 24. Rf3 {[%emt 0:00:00]} Qe6 {[%emt 0:00:05]} 25. Rf5 {[%emt 0:01:28]} Rxf5 26. exf5 Qf7 {[%emt 0:01:23]} 27. Nf3 {[%emt 0:00:56]} Bf6 {[%emt 0:00:02]} 28. Qe4 {[%emt 0:00:09]} Nd7 {[%emt 0:00:41]} 29. Rb2 {[%emt 0:00:18]} g4 {[%emt 0:00:53]} 30. Ne1 {[%emt 0:00:06]} b6 {[%emt 0:00:38]} 31. Qxc6 {[%emt 0:02:18]} e4 {[%emt 0:00:02]} 32. cxb6 {[%emt 0:00:15]} Nxb6 {[%emt 0:00:08]} 33. Re2 {[%emt 0:00:22]} Nd5 {[%emt 0:01:18]} 34. Bb4 {[%emt 0:00:07]} e3 {[%emt 0:01:34]} 35. fxe3 {[%emt 0:00:29]} Rxe3 {[%emt 0:00:10]} 36. Rxe3 {[%emt 0:00:14]} Nxe3 {[%emt 0:00:01]} 37. Nd3 {[%emt 0:00:21]} Kh7 {[%emt 0:01:28]} 38. Nf4 {[%emt 0:00:11]} Nxf5 {[%emt 0:00:14]} 39. Qe4 {[%emt 0:00:14]} Bg5 {[%emt 0:00:34]} 40. Ne6 {[%emt 0:00:13]} Kg6 {[%emt 0:00:41]} 41. Bc5 {[%emt 0:00:12]} a6 {[%emt 0:00:13]} 42. Kg2 {[%emt 0:00:25]} Kh6 {[%emt 0:00:20]} 43. Bf8+ {[%emt 0:00:04]} Kg6 {[%emt 0:00:03]} 44. Bc5 {[%emt 0:00:03]} Kh6 {[%emt 0:00:01]} 45. Qc6 {[%emt 0:00:10]} Qg6 {[%emt 0:00:36]} 46. Bf8+ {[%emt 0:00:07]} Kh7 {[%emt 0:00:01]} 47. Qd7+ {[%emt 0:00:23]} Kg8 {[%emt 0:00:02]} 48. Bc5 {[%emt 0:00:08]} Ne3+ {[%emt 0:00:23]} 49. Bxe3 {[%emt 0:00:01]} Bxe3 {[%emt 0:00:01]} 50. Qc8+ {[%emt 0:00:12]} Kf7 {[%emt 0:00:07]} 51. Nd8+ {[%emt 0:00:10]} Ke7 {[%emt 0:00:14]} 52. Nc6+ {[%emt 0:00:26]} Kd6 {[%emt 0:00:01]} 53. Qd8+ Kxc6 54. Qc8+ 0-1

[Event "EIRCC 2019"]
[Site "Tallinn"]
[Date "2019.12.05"]
[Round "3.35"]
[White "Bossy, Arnim"]
[Black "Van Foreest, Lucas"]
[Result "0-1"]
[ECO "A45"]
[WhiteElo "2108"]
[BlackElo "2399"]
[Annotator "NA"]
[PlyCount "58"]
[EventDate "2019.12.05"]
[EventType "swiss"]
[EventCountry "EST"]
[SourceTitle "playchess.com"]
[Source "ChessBase"]
[SourceQuality "1"]
[TimeControl "900+10"]

1. d4 {[%emt 0:00:00]} Nf6 {[%emt 0:01:08]} 2. Bf4 {[%emt 0:00:00]} d5 {[%emt 0:00:04]} 3. e3 {[%emt 0:00:00]} e6 {[%emt 0:00:05]} 4. Nd2 {[%emt 0:00:01]} c5 {[%emt 0:00:01]} 5. c3 {[%emt 0:00:01]} Nc6 {[%emt 0:00:01]} 6. Ngf3 {[%emt 0:00:01]} Nh5 {[%emt 0:00:00]} 7. Be5 {[%emt 0:00:41]} f6 {[%emt 0:00:08]} 8. Bg3 {[%emt 0:00:25]} cxd4 {[%emt 0:01:30]} 9. exd4 {[%emt 0:00:07]} Be7 {[%emt 0:00:36]} 10. Bd3 {[%emt 0:00:23]} g6 {[%emt 0:00:30]} 11. Qc2 {[%emt 0:01:27]} O-O {[%emt 0:00:07]} 12. O-O-O {[%emt 0:01:14]} Bd7 {[%emt 0:00:11]} 13. Nf1 {[%emt 0:02:42]} Nb4 {[%emt 0:00:06]} 14. Qb1 {[%emt 0:00:14]} Rc8 {[%emt 0:00:21]} 15. Ne3 {[%emt 0:01:05]} Qa5 {[%emt 0:00:10]} 16. a3 {[%emt 0:00:20]} Nxd3+ {[%emt 0:00:18]} 17. Rxd3 {[%emt 0:00:07]} Bb5 {[%emt 0:00:21]} 18. Rd2 {[%emt 0:00:37]} Ba4 {[%emt 0:00:41]} 19. Nc2 {[%emt 0:01:23]} Rc6 {[%emt 0:00:54]} 20. Nb4 {[%emt 0:00:19]} Bxb4 {[%emt 0:00:03]} 21. axb4 {[%emt 0:00:17]} Qxb4 {[%emt 0:00:03]} 22. Rd3 {[%emt 0:00:12]} Rfc8 {[%emt 0:00:37]} 23. Kd2 {[%emt 0:00:13]} Qb3 {[%emt 0:00:32]} 24. Rc1 {[%emt 0:00:12]} Ng7 {[%emt 0:00:19]} 25. Ke1 {[%emt 0:00:23]} Bb5 {[%emt 0:00:13]} 26. Rd2 {[%emt 0:00:07]} Qc4 {[%emt 0:00:02]} 27. Kd1 {[%emt 0:01:32]} Qf1+ {[%emt 0:00:02]} 28. Ne1 {[%emt 0:00:09]} Nf5 {[%emt 0:00:02]} 29. Qa2 {[%emt 0:00:44]} Nxd4 {[%emt 0:00:04]} 0-1